fUSD/lending_fUSD_20250623
["ID","MTS","AMOUNT","RATE_DAILY","PERIOD"]
[367165870,1750683038325,-148.01575031,0.00024657,2]
[367165872,1750683038334,-490.0,0.00024657,2]
[367165874,1750683038343,-480.79312865,0.00024657,2]
[367166034,1750683039809,-314.39,0.00020187,2]
[367166036,1750683039819,-9.20687135,0.00024657,2]
[367166038,1750683039828,-490.0,0.00024657,2]
[367166040,1750683039838,-76.35538321,0.00024657,2]
[367166056,1750683039988,-318.01194199,0.00024657,2]
[367166064,1750683040045,-95.6326748,0.00024657,2]
[367166066,1750683040055,-997.591025,0.00024657,2]
[367166068,1750683040064,-490.0,0.00024657,2]
[367166070,1750683040073,-490.0,0.00024657,2]
[367166071,1750683040082,-508.73224325,0.00024657,2]
[367166362,1750683042934,-304.51775675,0.00024657,2]
[367166364,1750683042943,-3735.48224325,0.00024657,2]
[367166366,1750683042955,-91.87664675,0.00024657,2]
[367166368,1750683042964,-490.0,0.00024657,2]
[367166370,1750683042973,-490.0,0.00024657,2]
[367166372,1750683042983,-1654.42,0.00024657,2]
[367166374,1750683042991,-490.0,0.00024657,2]
[367166376,1750683043001,-445.74502382,0.00024657,2]
[367166818,1750683325056,50000.0,0.00037862,60]
[367166819,1750683565553,1015.40590619,0.00037862,120]
[367166821,1750683617863,490.0,0.00037886,60]
[367166822,1750683770937,300.0,0.00025,120]
[367166823,1750683797679,3175.47288358,0.00037886,120]
[367166824,1750683823453,2397.61239053,0.00037886,120]
[367166825,1750684008925,150.0,0.00037942,60]
[367166826,1750684017708,50000.0,0.00037942,60]
[367166827,1750684024710,1000000.0,0.00037942,90]
[367166840,1750684171127,333.65,0.00013699,2]
[367166841,1750684173011,150.5,0.0002602,120]
[367166842,1750684173534,150.5,0.0002601,120]
[367166843,1750684173922,239.55,0.00026,120]
[367166844,1750684211717,203.0,0.00018919,2]
[367166855,1750684231791,-203.0,0.00020092,3]
[367166857,1750684231801,-247.037073,0.00020187,2]
[367166861,1750684231845,-86.612927,0.00020187,2]
[367166862,1750684231854,-240.01114736,0.00020555,2]
[367166863,1750684231863,-176.14,0.00020591,2]
[367166864,1750684231874,-480.02229471,0.00021055,2]
[367166865,1750684231885,-203.0,0.00021266,5]
[367166866,1750684231895,-2500.0,0.00021493,2]
[367166867,1750684231905,-600.0,0.00021555,2]
[367166868,1750684231915,-151.0,0.00021866,2]
[367166869,1750684231924,-240.01114736,0.00022055,2]
[367166870,1750684231933,-150.0,0.00022315,2]
[367166871,1750684231942,-150.0,0.00022315,2]
[367166872,1750684231952,-150.0,0.00022315,2]
[367166873,1750684231961,-203.0,0.0002244,6]
[367166874,1750684231970,-1000.0,0.000225,2]
[367166875,1750684231979,-150.0,0.00022591,4]
[367166876,1750684231989,-150.0,0.00022866,4]
[367166877,1750684231998,-272.36,0.00022903,2]
[367166878,1750684232008,-1000.0,0.0002292,2]
[367166879,1750684232017,-177.39,0.00022937,2]
[367166880,1750684232026,-1200.0,0.00023008,2]
[367166881,1750684232035,-2500.0,0.0002301,2]
[367166882,1750684232045,-1000.0,0.0002301,5]
[367166883,1750684232054,-169.66,0.00023114,2]
[367166884,1750684232064,-150.0,0.00023142,4]
[367166885,1750684232077,-938.0280775,0.000233,8]
[367166886,1750684232086,-938.02807732,0.000233,8]
[367166887,1750684232095,-938.02807732,0.00023314,9]
[367166888,1750684232104,-165.74,0.00023402,2]
[367166889,1750684232114,-150.0,0.00023417,4]
[367166890,1750684232124,-165.74,0.00023425,2]
[367166891,1750684232133,-165.74,0.00023448,2]
[367166892,1750684232142,-165.74,0.00023472,2]
[367166893,1750684232152,-165.74,0.00023495,2]
[367166894,1750684232161,-1100.0,0.000235,3]
[367166895,1750684232171,-165.74,0.00023519,2]
[367166896,1750684232180,-938.02807732,0.00023521,9]
[367166897,1750684232189,-2458.96,0.00023534,2]
[367166898,1750684232198,-207.4,0.0002355,2]
[367166899,1750684232207,-7142.856,0.0002355,2]
[367166900,1750684232216,-7407.141672,0.00023605,2]
[367166901,1750684232225,-1240.0,0.00023608,2]
[367166902,1750684232235,-203.0,0.00023614,8]
[367166903,1750684232244,-151.0,0.00023618,2]
[367166904,1750684232253,-250.0,0.00023623,2]
[367166905,1750684232262,-7681.20591386,0.0002366,2]
[367166906,1750684232272,-202.587,0.00023667,2]
[367166907,1750684232281,-4142.703,0.00023667,2]
[367166908,1750684232290,-692.48438825,0.00023667,2]
[367166909,1750684232317,-542.468985,0.00023667,2]
[367166910,1750684232329,-1399.93190357,0.00023667,2]
[367166911,1750684232352,-288.81015345,0.00023667,2]
[367166912,1750684232364,-749.17,0.00023667,2]
[367166913,1750684232375,-2787.85887795,0.00023667,2]
[367166914,1750684232386,-298.695,0.00023667,2]
[367166915,1750684232398,-378.58069178,0.00023667,2]
[367166916,1750684232407,-150.0,0.00023693,4]
[367166917,1750684232417,-70.44991763,0.00023715,2]
[367166918,1750684232451,-7894.96061505,0.00023715,2]
[367166919,1750684232461,-938.02807732,0.00023728,9]
[367166920,1750684232471,-2585.04872525,0.0002377,2]
[367166921,1750684232483,-409.32513147,0.0002377,2]
[367166922,1750684232494,-452.0127224,0.0002377,2]
[367166923,1750684232506,-4800.00000001,0.0002377,2]
[367166924,1750684232517,-13.74414326,0.0002377,2]
[367166925,1750684232527,-446.25585674,0.00023825,2]
[367166930,1750684237848,-7647.9357155,0.00023825,2]
[367166931,1750684237861,-471.56398687,0.00023825,2]
[367166932,1750684237871,-186.34,0.00023836,2]
[367166933,1750684237881,-3254.94858928,0.0002388,2]
[367166934,1750684237893,-5627.73992552,0.0002388,2]
[367166935,1750684237904,-938.02807732,0.00023934,10]
[367166936,1750684237915,-226.47533633,0.00023935,2]
[367166937,1750684237926,-150.0,0.00023968,4]
[367166938,1750684237937,-300.0,0.00024009,2]
[367166939,1750684237946,-938.02807732,0.00024141,10]
[367166940,1750684237957,-885.0,0.00024189,2]
[367166941,1750684237967,-150.0,0.00024244,4]
[367166942,1750684237977,-1240.0,0.00024291,2]
[367166943,1750684237987,-1240.0,0.00024321,2]
[367166944,1750684237997,-938.02807732,0.00024348,11]
[367166945,1750684238007,-2832.29529505,0.0002435,2]
[367166946,1750684238018,-405.70470495,0.0002435,2]
[367166947,1750684238028,-168.29,0.00024352,2]
[367166948,1750684238037,-202.31866,0.0002441,2]
[367166949,1750684238047,-1195.538259,0.00024424,4]
[367166950,1750684238056,-200.0,0.0002446,2]
[367166951,1750684238066,-202.31866,0.0002448,2]
[367166952,1750684238079,-1170.0,0.000245,4]
[367166955,1750684238089,-413.49,0.00024512,2]
[367166956,1750684238098,-150.0,0.00024519,4]
[367166958,1750684238108,-598.68649195,0.00024524,2]
[367166960,1750684238118,-598.68649191,0.00024539,2]
[367166962,1750684238127,-151.0,0.00024542,2]
[367166964,1750684238136,-64.26412867,0.00024542,2]
[367166966,1750684238148,-604.3877289,0.00024542,2]
[367166968,1750684238159,-151.87550536,0.00024542,2]
[367166970,1750684238168,-154.54683743,0.00024542,2]
[367166972,1750684238178,-151.0,0.00024542,2]
[367166974,1750684238187,-834.59255148,0.0002455,2]
[367166976,1750684238197,-696.0,0.00024551,2]
[367166978,1750684238206,-598.68649191,0.00024553,2]
[367166979,1750684238216,-8128.77671935,0.00024555,2]
[367166982,1750684238228,-2117.43759334,0.00024555,2]
[367166987,1750684238252,-16576.1993,0.00024555,2]
[367166991,1750684238267,-17561.39717764,0.00024555,2]
[367166993,1750684238277,-938.02807732,0.00024555,11]
[367166995,1750684238287,-352.83100356,0.00024556,2]
[367166997,1750684238297,-162.49570099,0.00024556,2]
[367166999,1750684238307,-5000.0,0.00024557,2]
[367167002,1750684238317,-2418.7367,0.00024557,3]
[367167004,1750684238326,-2500.0,0.00024557,2]
[367167006,1750684238336,-300.7680529,0.00024557,2]
[367167008,1750684238346,-158.66428928,0.00024557,2]
[367167010,1750684238355,-1956.67795481,0.00024557,2]
[367167012,1750684238365,-1145.29723315,0.00024557,2]
[367167014,1750684238374,-598.68649191,0.00024568,2]
[367167016,1750684238383,-598.68649191,0.00024582,2]
[367167018,1750684238393,-2000.0,0.00024592,2]
[367167020,1750684238403,-200.0,0.00024592,2]
[367167022,1750684238412,-598.68649191,0.00024597,2]
[367167024,1750684238422,-202.31866,0.000246,2]
[367167026,1750684238432,-598.68649191,0.00024611,2]
[367167028,1750684238442,-44383.81079029,0.00024616,2]
[367167030,1750684238451,-598.68649191,0.00024626,2]
[367167073,1750684238839,-598.68649191,0.0002464,2]
[367167077,1750684238863,-1162.53813318,0.00024647,2]
[367167079,1750684238873,-1306.998,0.00024647,7]
[367167081,1750684238882,-186.668,0.00024647,7]
[367167083,1750684238893,-639.38300335,0.00024648,2]
[367167085,1750684238902,-39999.32318599,0.00024648,2]
[367167087,1750684238912,-598.68649191,0.00024655,2]
[367167089,1750684238921,-53477.8059789,0.00024655,2]
[367167091,1750684238931,-500.0,0.00024655,2]
[367167093,1750684238941,-356.87726513,0.00024655,2]
[367167095,1750684238951,-507.30909534,0.00024655,2]
[367167097,1750684238961,-507.30909534,0.00024655,2]
[367167098,1750684238971,-500.0,0.00024655,2]
[367167101,1750684238981,-507.30909534,0.00024655,2]
[367167102,1750684238990,-507.30909534,0.00024655,2]
[367167105,1750684239000,-428.00767624,0.00024655,2]
[367167107,1750684239010,-507.30909534,0.00024655,2]
[367167109,1750684239020,-507.30909534,0.00024655,2]
[367167111,1750684239030,-507.30909534,0.00024655,2]
[367167113,1750684239039,-507.30909534,0.00024655,2]
[367167115,1750684239049,-507.30909534,0.00024655,2]
[367167117,1750684239058,-507.30909534,0.00024655,2]
[367167119,1750684239069,-507.30909534,0.00024655,2]
[367167121,1750684239082,-507.30909534,0.00024655,2]
[367167123,1750684239091,-507.30909534,0.00024655,2]
[367167125,1750684239101,-507.30909534,0.00024655,2]
[367167127,1750684239110,-507.30909534,0.00024655,2]
[367167129,1750684239121,-507.30909534,0.00024655,2]
[367167131,1750684239130,-507.30909534,0.00024655,2]
[367167133,1750684239140,-507.30909534,0.00024655,2]
[367167135,1750684239153,-507.30909534,0.00024655,2]
[367167137,1750684239163,-507.30909534,0.00024655,2]
[367167139,1750684239173,-507.30909534,0.00024655,2]
[367167141,1750684239182,-507.30909534,0.00024655,2]
[367167143,1750684239192,-507.30909534,0.00024655,2]
[367167145,1750684239201,-507.30909534,0.00024655,2]
[367167147,1750684239211,-507.30909534,0.00024655,2]
[367167149,1750684239220,-507.30909534,0.00024655,2]
[367167150,1750684239230,-507.30909534,0.00024655,2]
[367167152,1750684239241,-507.30909534,0.00024655,2]
[367167154,1750684239251,-507.30909534,0.00024655,2]
[367167156,1750684239260,-507.30909534,0.00024655,2]
[367167158,1750684239270,-507.30909534,0.00024655,2]
[367167161,1750684239280,-507.30909534,0.00024655,2]
[367167163,1750684239290,-507.30909534,0.00024655,2]
[367167165,1750684239300,-507.30909534,0.00024655,2]
[367167167,1750684239310,-507.30909534,0.00024655,2]
[367167169,1750684239319,-507.30909534,0.00024655,2]
[367167170,1750684239329,-507.30909534,0.00024655,2]
[367167173,1750684239339,-507.30909534,0.00024655,2]
[367167175,1750684239349,-507.30909534,0.00024655,2]
[367167177,1750684239358,-507.30909534,0.00024655,2]
[367167179,1750684239368,-507.30909534,0.00024655,2]
[367167181,1750684239378,-507.30909534,0.00024655,2]
[367167183,1750684239388,-507.30909534,0.00024655,2]
[367167185,1750684239397,-507.30909534,0.00024655,2]
[367167187,1750684239407,-507.30909534,0.00024655,2]
[367167189,1750684239416,-507.30909534,0.00024655,2]
[367167190,1750684239426,-507.30909534,0.00024655,2]
[367167193,1750684239435,-507.30909534,0.00024655,2]
[367167194,1750684239445,-507.30909534,0.00024655,2]
[367167196,1750684239455,-507.30909534,0.00024655,2]
[367167198,1750684239464,-507.30909534,0.00024655,2]
[367167200,1750684239473,-507.30909534,0.00024655,2]
[367167202,1750684239482,-507.30909534,0.00024655,2]
[367167204,1750684239492,-507.30909534,0.00024655,2]
[367167206,1750684239501,-507.30909534,0.00024655,2]
[367167208,1750684239510,-507.30909534,0.00024655,2]
[367167210,1750684239520,-507.30909534,0.00024655,2]
[367167212,1750684239529,-507.30909534,0.00024655,2]
[367167214,1750684239539,-507.30909534,0.00024655,2]
[367167216,1750684239548,-507.30909534,0.00024655,2]
[367167218,1750684239557,-507.30909534,0.00024655,2]
[367167220,1750684239567,-507.30909534,0.00024655,2]
[367167222,1750684239576,-507.30909534,0.00024655,2]
[367167224,1750684239587,-507.30909534,0.00024655,2]
[367167226,1750684239596,-507.30909534,0.00024655,2]
[367167228,1750684239605,-507.30909534,0.00024655,2]
[367167230,1750684239615,-1157.69523303,0.00024656,10]
[367167233,1750684239625,-268587.6655727,0.00024656,2]
[367167234,1750684239634,-96976.9924912,0.00024656,2]
[367167237,1750684239647,-666.0,0.00024656,2]
[367167238,1750684239656,-330.71196817,0.00024656,2]
[367167241,1750684239666,-300.0,0.00024656,2]
[367167242,1750684239677,-300.0,0.00024656,2]
[367167245,1750684239687,-1177.0,0.00024657,2]
[367167247,1750684239697,-372.14997647,0.00024657,2]
[367167249,1750684239707,-490.0,0.00024657,2]
[367167251,1750684239717,-490.0,0.00024657,2]
[367167253,1750684239726,-490.0,0.00024657,2]
[367167255,1750684239735,-490.0,0.00024657,2]
[367167257,1750684239745,-548.79,0.00024657,2]
[367167259,1750684239755,-490.0,0.00024657,2]
[367167261,1750684239765,-212.7241685,0.00024657,2]
[367167263,1750684239774,-490.0,0.00024657,2]
[367167265,1750684239783,-490.0,0.00024657,2]
[367167267,1750684239793,-499.89651226,0.00024657,2]
[367167269,1750684239802,-490.0,0.00024657,2]
[367167271,1750684239811,-490.0,0.00024657,2]
[367167273,1750684239821,-224.27325093,0.00024657,2]
[367167275,1750684239832,-492.8490396,0.00024657,2]
[367167277,1750684239841,-490.82898437,0.00024657,2]
[367167279,1750684239851,-491.342466,0.00024657,2]
[367167281,1750684239861,-490.0,0.00024657,2]
[367167283,1750684239871,-490.0,0.00024657,2]
[367167285,1750684239880,-490.59791497,0.00024657,2]
[367167287,1750684239892,-490.0,0.00024657,2]
[367167289,1750684239902,-316.73585332,0.00024657,2]
[367167291,1750684239911,-490.6129791,0.00024657,2]
[367167293,1750684239921,-490.52367389,0.00024657,2]
[367167295,1750684239930,-630.0,0.00024657,2]
[367167297,1750684239940,-490.0,0.00024657,2]
[367167300,1750684239951,-490.0,0.00024657,2]
[367167301,1750684239961,-763.59,0.00024657,2]
[367167304,1750684239971,-407.66316328,0.00024657,2]
[367167305,1750684239981,-324.89976615,0.00024657,2]
[367167308,1750684239991,-602.58,0.00024657,2]
[367167310,1750684240000,-492.29319043,0.00024657,2]
[367167312,1750684240010,-490.0,0.00024657,2]
[367167313,1750684240019,-490.0,0.00024657,2]
[367167316,1750684240029,-491.35545057,0.00024657,2]
[367167317,1750684240038,-490.0,0.00024657,2]
[367167319,1750684240048,-510.03204965,0.00024657,2]
[367167322,1750684240058,-491.33512135,0.00024657,2]
[367167323,1750684240067,-798.01,0.00024657,2]
[367167326,1750684240081,-428.14300937,0.00024657,2]
[367167328,1750684240090,-490.0,0.00024657,2]
[367167329,1750684240099,-490.0,0.00024657,2]
[367167331,1750684240108,-490.0,0.00024657,2]
[367167334,1750684240118,-490.0,0.00024657,2]
[367167336,1750684240127,-490.67036609,0.00024657,2]
[367167337,1750684240137,-490.0,0.00024657,2]
[367167339,1750684240147,-490.0,0.00024657,2]
[367167341,1750684240156,-490.0,0.00024657,2]
[367167343,1750684240166,-492.14000265,0.00024657,2]
[367167345,1750684240176,-613.43,0.00024657,2]
[367167348,1750684240185,-490.0,0.00024657,2]
[367167349,1750684240195,-490.0,0.00024657,2]
[367167351,1750684240204,-490.0,0.00024657,2]
[367167353,1750684240214,-490.0,0.00024657,2]
[367167355,1750684240223,-490.0,0.00024657,2]
[367167358,1750684240233,-490.0,0.00024657,2]
[367167359,1750684240243,-490.0,0.00024657,2]
[367167362,1750684240253,-490.78732614,0.00024657,2]
[367167364,1750684240262,-490.0,0.00024657,2]
[367167366,1750684240272,-490.0,0.00024657,2]
[367167368,1750684240281,-490.0,0.00024657,2]
[367167369,1750684240290,-490.75210661,0.00024657,2]
[367167371,1750684240300,-490.0,0.00024657,2]
[367167373,1750684240309,-490.0,0.00024657,2]
[367167375,1750684240319,-389.67749124,0.00024657,2]
[367167377,1750684240329,-490.0,0.00024657,2]
[367167379,1750684240338,-498.90611922,0.00024657,2]
[367167381,1750684240348,-490.0,0.00024657,2]
[367167382,1750684240358,-824.65,0.00024657,2]
[367167383,1750684240367,-490.0,0.00024657,2]
[367167384,1750684240377,-490.0,0.00024657,2]
[367167386,1750684240387,-490.0,0.00024657,2]
[367167388,1750684240397,-490.0,0.00024657,2]
[367167390,1750684240408,-490.0,0.00024657,2]
[367167392,1750684240417,-490.0,0.00024657,2]
[367167394,1750684240427,-1154.16,0.00024657,2]
[367167396,1750684240437,-490.0,0.00024657,2]
[367167398,1750684240447,-342.91811501,0.00024657,2]
[367167400,1750684240457,-490.0,0.00024657,2]
[367167402,1750684240467,-490.0,0.00024657,2]
[367167404,1750684240477,-490.0,0.00024657,2]
[367167406,1750684240486,-490.0,0.00024657,2]
[367167408,1750684240495,-997.81697,0.00024657,2]
[367167410,1750684240505,-490.0,0.00024657,2]
[367167411,1750684240515,-490.0,0.00024657,2]
[367167413,1750684240524,-862.3,0.00024657,2]
[367167415,1750684240534,-420.0,0.00024657,2]
[367167417,1750684240543,-490.0,0.00024657,2]
[367167420,1750684240553,-512.0,0.00024657,2]
[367167422,1750684240563,-490.0,0.00024657,2]
[367167425,1750684240573,-490.0,0.00024657,2]
[367167427,1750684240582,-490.0,0.00024657,2]
[367167429,1750684240592,-969.06,0.00024657,2]
[367167431,1750684240601,-490.0,0.00024657,2]
[367167433,1750684240611,-490.0,0.00024657,2]
[367167435,1750684240620,-606.44,0.00024657,2]
[367167436,1750684240629,-490.0,0.00024657,2]
[367167439,1750684240640,-490.0,0.00024657,2]
[367167440,1750684240649,-927.61,0.00024657,2]
[367167443,1750684240659,-490.0,0.00024657,2]
[367167445,1750684240669,-891.34,0.00024657,2]
[367167447,1750684240679,-490.0,0.00024657,2]
[367167449,1750684240688,-490.0,0.00024657,2]
[367167451,1750684240697,-490.0,0.00024657,2]
[367167453,1750684240707,-490.0,0.00024657,2]
[367167455,1750684240717,-490.0,0.00024657,2]
[367167457,1750684240726,-490.0,0.00024657,2]
[367167459,1750684240736,-490.0,0.00024657,2]
[367167461,1750684240745,-490.0,0.00024657,2]
[367167463,1750684240754,-153.552939,0.00024657,2]
[367167465,1750684240764,-492.34,0.00024657,2]
[367167467,1750684240774,-490.0,0.00024657,2]
[367167469,1750684240783,-490.0,0.00024657,2]
[367167471,1750684240793,-151.476984,0.00024657,2]
[367167473,1750684240802,-490.0,0.00024657,2]
[367167475,1750684240812,-793.26,0.00024657,2]
[367167477,1750684240822,-546.16,0.00024657,2]
[367167479,1750684240831,-490.0,0.00024657,2]
[367167481,1750684240841,-490.0,0.00024657,2]
[367167483,1750684240850,-490.0,0.00024657,2]
[367167485,1750684240860,-490.0,0.00024657,2]
[367167487,1750684240869,-490.0,0.00024657,2]
[367167489,1750684240879,-490.0,0.00024657,2]
[367167491,1750684240891,-490.0,0.00024657,2]
[367167493,1750684240902,-490.0,0.00024657,2]
[367167495,1750684240911,-490.0,0.00024657,2]
[367167497,1750684240920,-490.0,0.00024657,2]
[367167499,1750684240930,-490.0,0.00024657,2]
[367167501,1750684240939,-490.0,0.00024657,2]
[367167503,1750684240949,-490.0,0.00024657,2]
[367167505,1750684240958,-515.87,0.00024657,2]
[367167507,1750684240968,-490.0,0.00024657,2]
[367167509,1750684240977,-490.0,0.00024657,2]
[367167511,1750684240986,-500.0,0.00024657,2]
[367167513,1750684240995,-490.0,0.00024657,2]
[367167515,1750684241004,-500.0,0.00024657,2]
[367167517,1750684241014,-500.0,0.00024657,2]
[367167519,1750684241023,-490.0,0.00024657,2]
[367167521,1750684241032,-806.04,0.00024657,2]
[367167523,1750684241042,-490.0,0.00024657,2]
[367167525,1750684241051,-490.0,0.00024657,2]
[367167527,1750684241062,-490.0,0.00024657,2]
[367167530,1750684241073,-585.9173908,0.00024657,2]
[367167532,1750684241084,-490.0,0.00024657,2]
[367167534,1750684241093,-154.6004586,0.00024657,2]
[367167536,1750684241102,-490.0,0.00024657,2]
[367167538,1750684241111,-490.0,0.00024657,2]
[367167540,1750684241120,-354.45825199,0.00024657,2]
[367167541,1750684241129,-490.0,0.00024657,2]
[367167544,1750684241140,-490.0,0.00024657,2]
[367167545,1750684241150,-931.65,0.00024657,2]
[367167548,1750684241159,-490.0,0.00024657,2]
[367167550,1750684241169,-490.0,0.00024657,2]
[367167552,1750684241178,-480.94396364,0.00024657,2]
[367167554,1750684241187,-500.0,0.00024657,2]
[367167556,1750684241196,-500.0,0.00024657,2]
[367167558,1750684241205,-500.0,0.00024657,2]
[367167560,1750684241214,-490.0,0.00024657,2]
[367167562,1750684241224,-511.24282641,0.00024657,2]
[367167564,1750684241233,-490.0,0.00024657,2]
[367167566,1750684241242,-1101.41,0.00024657,2]
[367167567,1750684241252,-490.0,0.00024657,2]
[367167568,1750684241261,-490.0,0.00024657,2]
[367167569,1750684241270,-490.0,0.00024657,2]
[367167570,1750684241358,-490.0,0.00024657,2]
[367167571,1750684241368,-153.552939,0.00024657,2]
[367167572,1750684241378,-945.47,0.00024657,2]
[367167573,1750684241389,-474.26357857,0.00024657,2]
[367167574,1750684241398,-490.0,0.00024657,2]
[367167575,1750684241408,-490.0,0.00024657,2]
[367167576,1750684241418,-491.03799308,0.00024657,2]
[367167578,1750684241427,-490.0,0.00024657,2]
[367167579,1750684241436,-151.476987,0.00024657,2]
[367167581,1750684241445,-490.0,0.00024657,2]
[367167583,1750684241455,-490.0,0.00024657,2]
[367167585,1750684241464,-224.089707,0.00024657,2]
[367167587,1750684241473,-490.0,0.00024657,2]
[367167589,1750684241483,-490.0,0.00024657,2]
[367167591,1750684241492,-494.97,0.00024657,2]
[367167593,1750684241502,-490.0,0.00024657,2]
[367167595,1750684241511,-490.0,0.00024657,2]
[367167597,1750684241521,-490.0,0.00024657,2]
[367167599,1750684241530,-490.0,0.00024657,2]
[367167601,1750684241539,-592.61,0.00024657,2]
[367167603,1750684241548,-490.0,0.00024657,2]
[367167605,1750684241558,-490.0,0.00024657,2]
[367167607,1750684241569,-198.016983,0.00024657,2]
[367167609,1750684241578,-490.0,0.00024657,2]
[367167611,1750684241588,-490.0,0.00024657,2]
[367167613,1750684241597,-491.41035758,0.00024657,2]
[367167615,1750684241606,-490.0,0.00024657,2]
[367167617,1750684241616,-490.0,0.00024657,2]
[367167619,1750684241625,-490.0,0.00024657,2]
[367167621,1750684241634,-490.0,0.00024657,2]
[367167623,1750684241645,-490.0,0.00024657,2]
[367167625,1750684241655,-342.36921527,0.00024657,2]
[367167627,1750684241664,-490.0,0.00024657,2]
[367167629,1750684241674,-792.39,0.00024657,2]
[367167631,1750684241683,-490.0,0.00024657,2]
[367167633,1750684241691,-490.0,0.00024657,2]
[367167635,1750684241700,-490.0,0.00024657,2]
[367167637,1750684241710,-490.0,0.00024657,2]
[367167639,1750684241719,-490.0,0.00024657,2]
[367167641,1750684241728,-490.0,0.00024657,2]
[367167643,1750684241737,-490.0,0.00024657,2]
[367167645,1750684241746,-491.79931684,0.00024657,2]
[367167647,1750684241755,-490.0,0.00024657,2]
[367167649,1750684241764,-490.0,0.00024657,2]
[367167651,1750684241773,-490.26640777,0.00024657,2]
[367167653,1750684241783,-490.0,0.00024657,2]
[367167655,1750684241792,-490.0,0.00024657,2]
[367167657,1750684241800,-490.0,0.00024657,2]
[367167659,1750684241809,-490.0,0.00024657,2]
[367167661,1750684241818,-490.0,0.00024657,2]
[367167662,1750684241827,-490.0,0.00024657,2]
[367167664,1750684241837,-490.0,0.00024657,2]
[367167667,1750684241846,-490.0,0.00024657,2]
[367167668,1750684241857,-490.0,0.00024657,2]
[367167671,1750684241867,-490.0,0.00024657,2]
[367167672,1750684241878,-481.79954038,0.00024657,2]
[367167674,1750684241888,-490.0,0.00024657,2]
[367167676,1750684241897,-151.476985,0.00024657,2]
[367167679,1750684241908,-490.0,0.00024657,2]
[367167680,1750684241917,-490.0,0.00024657,2]
[367167682,1750684241926,-490.0,0.00024657,2]
[367167684,1750684241935,-500.0,0.00024657,2]
[367167686,1750684241944,-500.0,0.00024657,2]
[367167688,1750684241954,-500.0,0.00024657,2]
[367167690,1750684241963,-490.0,0.00024657,2]
[367167692,1750684241973,-490.0,0.00024657,2]
[367167694,1750684241982,-490.0,0.00024657,2]
[367167696,1750684241991,-490.0,0.00024657,2]
[367167698,1750684242000,-490.0,0.00024657,2]
[367167700,1750684242009,-490.0,0.00024657,2]
[367167702,1750684242019,-490.0,0.00024657,2]
[367167704,1750684242028,-576.0,0.00024657,2]
[367167706,1750684242037,-490.0,0.00024657,2]
[367167708,1750684242046,-155.631381,0.00024657,2]
[367167710,1750684242055,-494.58670977,0.00024657,2]
[367167712,1750684242066,-490.0,0.00024657,2]
[367167714,1750684242079,-495.87290419,0.00024657,2]
[367167716,1750684242088,-490.0,0.00024657,2]
[367167718,1750684242098,-538.48281133,0.00024657,2]
[367167720,1750684242107,-491.35216683,0.00024657,2]
[367167722,1750684242117,-490.0,0.00024657,2]
[367167724,1750684242126,-588.0,0.00024657,2]
[367167726,1750684242135,-490.0,0.00024657,2]
[367167728,1750684242146,-490.0,0.00024657,2]
[367167730,1750684242156,-490.0,0.00024657,2]
[367167732,1750684242166,-219.24871219,0.00024657,2]
[367167734,1750684242175,-490.0,0.00024657,2]
[367167736,1750684242184,-490.0,0.00024657,2]
[367167738,1750684242194,-490.0,0.00024657,2]